[Event "Najdorf Memorial-A 2022"]
[Site "Warsaw"]
[Date "2022.07.12"]
[Round "4.10"]
[White "Jedrusik, Adam"]
[Black "Golecki, Jan"]
[Result "0-1"]
[ECO "E46"]
[WhiteElo "1960"]
[BlackElo "2219"]
[Annotator "ChessBase"]
[PlyCount "104"]
[EventDate "2022.07.09"]
[EventType "swiss"]
[EventCountry "POL"]
[SourceTitle "playchess.com"]
[Source "ChessBase"]
[SourceQuality "1"]
[TimeControl "40/5400+30:1800+30"]

1. d4 {[%emt 0:00:02]} Nf6 {[%emt 0:02:48]} 2. c4 {[%emt 0:00:18]} e6 {[%emt 0:00:06]} 3. Nc3 {[%emt 0:00:06]} Bb4 {[%emt 0:00:35]} 4. e3 {[%emt 0:00:05]} O-O {[%emt 0:00:06]} 5. Nge2 {[%emt 0:00:03]} b6 {[%emt 0:00:45]} 6. a3 {[%emt 0:00:06]} Be7 {[%emt 0:01:08]} 7. Nf4 {[%emt 0:00:03]} d5 {[%emt 0:00:27]} 8. cxd5 {[%emt 0:01:11]} exd5 {[%emt 0:00:42]} 9. Bd3 {[%emt 0:01:02]} c6 {[%emt 0:01:08]} 10. O-O {[%emt 0:01:08]} Re8 {[%emt 0:04:50]} 11. h3 {[%emt 0:06:25]} Bd6 {[%emt 0:02:17]} 12. Qf3 {[%emt 0:02:43]} Ba6 {[%emt 0:02:17]} 13. Bxa6 {[%emt 0:08:32]} Nxa6 {[%emt 0:00:10]} 14. Bd2 {[%emt 0:01:57]} Qd7 {[%emt 0:01:31]} 15. Rfc1 {[%emt 0:11:22]} Nc7 {[%emt 0:03:47]} 16. Nce2 {[%emt 0:06:37]} Ne4 {[%emt 0:05:09]} 17. Be1 {[%emt 0:00:19]} Ne6 {[%emt 0:00:49]} 18. Qg4 {[%emt 0:11:20]} Nf6 {[%emt 0:04:24]} 19. Qh4 {[%emt 0:06:58]} Nxf4 {[%emt 0:01:54]} 20. Nxf4 {[%emt 0:00:03]} Re4 {[%emt 0:00:22]} 21. Bd2 {[%emt 0:02:25]} Bxf4 {[%emt 0:04:48]} 22. exf4 {[%emt 0:00:27]} Re2 {[%emt 0:00:35]} 23. Bc3 {[%emt 0:01:44]} Rae8 {[%emt 0:02:51]} 24. Re1 {[%emt 0:03:49]} h6 {[%emt 0:10:45]} 25. g4 {[%emt 0:05:51]} R2e4 {[%emt 0:03:37]} 26. f3 {[%emt 0:09:04]} Re3 {[%emt 0:04:46]} 27. Qf2 {[%emt 0:04:23]} Rxe1+ {[%emt 0:06:39]} 28. Rxe1 {[%emt 0:00:19]} Rxe1+ {[%emt 0:00:03]} 29. Qxe1 {[%emt 0:00:21]} Qe8 {[%emt 0:00:03]} 30. Qd2 {[%emt 0:02:06]} Qe6 {[%emt 0:01:47]} 31. Kf2 {[%emt 0:02:17]} Ne8 {[%emt 0:00:32]} 32. Qd3 {[%emt 0:01:25]} f5 {[%emt 0:04:05]} 33. Qa6 {[%emt 0:00:52]} Qd7 {[%emt 0:00:18]} 34. Qe2 {[%emt 0:00:47]} Kf7 {[%emt 0:04:23]} 35. Qe5 {[%emt 0:03:01]} Nd6 {[%emt 0:00:17]} 36. Bb4 {[%emt 0:01:43]} Nc4 {[%emt 0:00:23]} 37. Qb8 {[%emt 0:02:20]} Nxb2 {[%emt 0:13:11]} 38. Qf8+ {[%emt 0:00:33]} Kg6 {[%emt 0:00:05]} 39. gxf5+ {[%emt 0:00:07]} Qxf5 {[%emt 0:00:13]} 40. Qe8+ {[%emt 0:00:00]} Kh7 {[%emt 0:00:00]} 41. Qxc6 {[%emt 0:00:37]} Nd3+ {[%emt 0:00:28]} 42. Ke3 {[%emt 0:02:07]} Nxf4 {[%emt 0:00:08]} 43. Bd6 {[%emt 0:00:54]} Ng6 {[%emt 0:02:06]} 44. Qc7 {[%emt 0:01:10]} Nh4 {[%emt 0:02:09]} 45. Be5 {[%emt 0:02:50]} Qxf3+ {[%emt 0:00:06]} 46. Kd2 {[%emt 0:00:08]} Nf5 {[%emt 0:06:23]} 47. Qxa7 {[%emt 0:02:04]} Qe3+ {[%emt 0:00:29]} 48. Kc2 {[%emt 0:03:11]} Nxd4+ {[%emt 0:00:12]} 49. Bxd4 {[%emt 0:00:03]} Qxd4 {[%emt 0:00:05]} 50. Qd7 {[%emt 0:00:17]} Qe4+ {[%emt 0:00:49]} 51. Kd2 {[%emt 0:00:05]} d4 {[%emt 0:00:31]} 52. Qc8 {[%emt 0:00:42]} Qe3+ {[%emt 0:00:37]} 0-1

[Event "Najdorf Memorial-A 2022"]
[Site "Warsaw"]
[Date "2022.07.12"]
[Round "4.10"]
[White "Zalega, Maciej"]
[Black "Jaskiewicz, Kacper"]
[Result "1-0"]
[ECO "B15"]
[WhiteElo "1912"]
[BlackElo "1756"]
[Annotator "ChessBase"]
[PlyCount "45"]
[EventDate "2022.07.09"]
[EventType "swiss"]
[EventCountry "POL"]
[SourceTitle "playchess.com"]
[Source "ChessBase"]
[SourceQuality "1"]
[TimeControl "40/5400+30:1800+30"]

1. e4 c6 2. d4 d5 3. Nc3 dxe4 4. Nxe4 Nf6 5. Nxf6+ exf6 6. c3 Bd6 7. Bd3 O-O 8. Qc2 Re8+ 9. Ne2 h5 10. O-O h4 11. Nf4 Qc7 12. g3 Nd7 13. Qd1 Nf8 14. Qh5 Bd7 15. Bd2 Re7 16. Kh1 Rae8 17. Rg1 hxg3 18. hxg3 Qc8 19. Kg2 Bg4 20. Qh2 Bf5 21. Rh1 Ng6 22. Qh7+ Kf8 23. Qh8+ 1-0

[Event "Najdorf Memorial-A 2022"]
[Site "Warsaw"]
[Date "2022.07.12"]
[Round "4.11"]
[White "Markiewicz, Jerzy"]
[Black "Dovzhenko, Alexander"]
[Result "1/2-1/2"]
[ECO "B32"]
[WhiteElo "2205"]
[BlackElo "1973"]
[Annotator "ChessBase"]
[PlyCount "66"]
[EventDate "2022.07.09"]
[EventType "swiss"]
[EventCountry "POL"]
[SourceTitle "playchess.com"]
[Source "ChessBase"]
[SourceQuality "1"]
[TimeControl "40/5400+30:1800+30"]

1. e4 {[%emt 0:00:09]} c5 {[%emt 0:00:31]} 2. Nf3 {[%emt 0:00:07]} Nc6 {[%emt 0:00:24]} 3. d4 {[%emt 0:00:09]} cxd4 {[%emt 0:00:06]} 4. Nxd4 {[%emt 0:00:05]} e5 {[%emt 0:00:50]} 5. Nb5 {[%emt 0:00:10]} a6 {[%emt 0:00:16]} 6. Nd6+ {[%emt 0:00:20]} Bxd6 {[%emt 0:02:42]} 7. Qxd6 {[%emt 0:00:08]} Qf6 {[%emt 0:00:11]} 8. Qxf6 {[%emt 0:03:35]} Nxf6 {[%emt 0:00:13]} 9. Nc3 {[%emt 0:00:02]} b5 {[%emt 0:00:37]} 10. f3 {[%emt 0:05:09]} Bb7 {[%emt 0:01:37]} 11. Bg5 {[%emt 0:00:08]} Nd4 {[%emt 0:02:18]} 12. O-O-O {[%emt 0:00:14]} Rc8 {[%emt 0:00:07]} 13. a3 {[%emt 0:00:38]} Ne6 {[%emt 0:03:54]} 14. Bxf6 {[%emt 0:01:11]} gxf6 {[%emt 0:00:03]} 15. Nd5 {[%emt 0:00:12]} Bxd5 {[%emt 0:00:22]} 16. Rxd5 {[%emt 0:00:10]} Ke7 {[%emt 0:00:29]} 17. c3 {[%emt 0:01:52]} Rhd8 {[%emt 0:00:50]} 18. g3 {[%emt 0:00:40]} Nc7 {[%emt 0:00:52]} 19. Rd2 {[%emt 0:00:22]} a5 {[%emt 0:13:03]} 20. b4 {[%emt 0:11:07]} axb4 {[%emt 0:02:20]} 21. axb4 {[%emt 0:00:52]} d5 {[%emt 0:00:48]} 22. Bh3 {[%emt 0:00:32]} Ne6 {[%emt 0:02:09]} 23. Kb2 {[%emt 0:07:29]} d4 {[%emt 0:04:21]} 24. cxd4 {[%emt 0:00:29]} Rc4 {[%emt 0:01:06]} 25. Bxe6 {[%emt 0:00:43]} fxe6 {[%emt 0:00:22]} 26. d5 {[%emt 0:04:03]} Rxb4+ {[%emt 0:00:33]} 27. Kc3 {[%emt 0:00:05]} Rc4+ {[%emt 0:00:06]} 28. Kb3 {[%emt 0:00:04]} exd5 {[%emt 0:00:14]} 29. exd5 {[%emt 0:00:22]} Ra8 {[%emt 0:02:10]} 30. d6+ {[%emt 0:00:51]} Kd7 {[%emt 0:03:04]} 31. Rd5 {[%emt 0:00:36]} Kc6 {[%emt 0:07:42]} 32. Rhd1 {[%emt 0:00:10]} Raa4 {[%emt 0:00:07]} 33. d7 {[%emt 0:00:34]} Rab4+ {[%emt 0:00:05]} 1/2-1/2

[Event "Najdorf Memorial-A 2022"]
[Site "Warsaw"]
[Date "2022.07.12"]
[Round "4.11"]
[White "Rejniak, Zuzanna"]
[Black "Fiedorek, Michal"]
[Result "1/2-1/2"]
[ECO "B42"]
[WhiteElo "1813"]
[BlackElo "2289"]
[Annotator "ChessBase"]
[PlyCount "88"]
[EventDate "2022.07.09"]
[EventType "swiss"]
[EventCountry "POL"]
[SourceTitle "playchess.com"]
[Source "ChessBase"]
[SourceQuality "1"]
[TimeControl "40/5400+30:1800+30"]

1. e4 {[%emt 0:00:02]} c5 {[%emt 0:00:04]} 2. Nf3 {[%emt 0:00:07]} e6 {[%emt 0:00:05]} 3. d4 {[%emt 0:01:03]} cxd4 {[%emt 0:00:05]} 4. Nxd4 {[%emt 0:00:06]} a6 {[%emt 0:00:06]} 5. Bd3 {[%emt 0:02:18]} Nf6 {[%emt 0:01:03]} 6. O-O {[%emt 0:02:00]} Qc7 {[%emt 0:00:30]} 7. c4 {[%emt 0:07:47]} d6 {[%emt 0:00:19]} 8. Nc3 {[%emt 0:01:45]} g6 {[%emt 0:00:43]} 9. Be3 {[%emt 0:07:45]} Bg7 {[%emt 0:00:21]} 10. Rc1 {[%emt 0:02:36]} O-O {[%emt 0:00:59]} 11. f3 {[%emt 0:10:34]} Nbd7 {[%emt 0:01:00]} 12. Qd2 {[%emt 0:05:12]} b6 {[%emt 0:01:46]} 13. Rfd1 {[%emt 0:02:40]} Bb7 {[%emt 0:00:29]} 14. Be2 {[%emt 0:01:36]} Rfe8 {[%emt 0:10:37]} 15. b4 {[%emt 0:11:29]} Bf8 {[%emt 0:03:44]} 16. a4 {[%emt 0:05:59]} Rac8 {[%emt 0:02:19]} 17. Qa2 {[%emt 0:03:01]} Qb8 {[%emt 0:07:31]} 18. Bf2 {[%emt 0:09:12]} Ne5 {[%emt 0:05:01]} 19. Rc2 {[%emt 0:11:10]} Qa8 {[%emt 0:06:43]} 20. a5 {[%emt 0:04:42]} bxa5 {[%emt 0:03:32]} 21. bxa5 {[%emt 0:00:07]} Qb8 {[%emt 0:09:20]} 22. Na4 {[%emt 0:01:43]} Qc7 {[%emt 0:00:51]} 23. Nb6 {[%emt 0:01:27]} Rcd8 {[%emt 0:02:04]} 24. Nb3 {[%emt 0:02:46]} Nfd7 {[%emt 0:04:17]} 25. Qb2 {[%emt 0:03:04]} Nc5 {[%emt 0:02:22]} 26. Nxc5 {[%emt 0:00:10]} dxc5 {[%emt 0:00:08]} 27. Rcd2 {[%emt 0:00:44]} Bg7 {[%emt 0:10:16]} 28. Qc2 {[%emt 0:00:50]} f5 {[%emt 0:10:05]} 29. Rxd8 {[%emt 0:00:08]} Rxd8 {[%emt 0:00:05]} 30. exf5 {[%emt 0:00:07]} Rxd1+ {[%emt 0:03:16]} 31. Qxd1 {[%emt 0:00:02]} gxf5 {[%emt 0:00:14]} 32. f4 {[%emt 0:00:52]} Qc6 {[%emt 0:06:42]} 33. Qd8+ {[%emt 0:01:02]} Bf8 {[%emt 0:00:26]} 34. Qg5+ {[%emt 0:00:05]} Ng6 {[%emt 0:00:04]} 35. Bf3 {[%emt 0:00:07]} Qd6 {[%emt 0:00:43]} 36. h4 {[%emt 0:02:42]} Be7 {[%emt 0:03:04]} 37. Qh5 {[%emt 0:00:13]} Bxf3 {[%emt 0:02:44]} 38. Qxf3 {[%emt 0:00:03]} Nxh4 {[%emt 0:03:12]} 39. Qa8+ {[%emt 0:01:46]} Kg7 {[%emt 0:00:41]} 40. Qxa6 {[%emt 0:00:00]} Qxf4 {[%emt 0:00:00]} 41. Qb7 {[%emt 0:05:23]} Ng6 {[%emt 0:05:20]} 42. Nc8 {[%emt 0:04:04]} Qc1+ {[%emt 0:01:07]} 43. Kh2 {[%emt 0:00:12]} Qh6+ {[%emt 0:00:10]} 44. Kg1 {[%emt 0:00:04]} Qc1+ {[%emt 0:00:10]} 1/2-1/2

[Event "Najdorf Memorial-A 2022"]
[Site "Warsaw"]
[Date "2022.07.12"]
[Round "4.12"]
[White "Starosciak, Szymon"]
[Black "Padalka, Artem"]
[Result "0-1"]
[ECO "B27"]
[WhiteElo "1901"]
[BlackElo "2204"]
[Annotator "ChessBase"]
[PlyCount "112"]
[EventDate "2022.07.09"]
[EventType "swiss"]
[EventCountry "POL"]
[SourceTitle "playchess.com"]
[Source "ChessBase"]
[SourceQuality "1"]
[TimeControl "40/5400+30:1800+30"]

1. e4 {[%emt 0:00:08]} c5 {[%emt 0:02:53]} 2. Nf3 {[%emt 0:00:08]} g6 {[%emt 0:01:18]} 3. c4 {[%emt 0:00:29]} Bg7 {[%emt 0:00:16]} 4. d4 {[%emt 0:00:18]} d6 {[%emt 0:02:50]} 5. d5 {[%emt 0:05:12]} Nf6 {[%emt 0:01:23]} 6. Nc3 {[%emt 0:02:10]} O-O {[%emt 0:00:41]} 7. Bd3 {[%emt 0:01:16]} e6 {[%emt 0:02:22]} 8. h3 {[%emt 0:09:35]} exd5 {[%emt 0:00:49]} 9. exd5 {[%emt 0:04:59]} Re8+ {[%emt 0:01:07]} 10. Be3 {[%emt 0:02:28]} Na6 {[%emt 0:08:49]} 11. O-O {[%emt 0:01:35]} Nc7 {[%emt 0:01:09]} 12. a4 {[%emt 0:04:44]} Na6 {[%emt 0:01:47]} 13. Qd2 {[%emt 0:05:22]} Nb4 {[%emt 0:00:36]} 14. Bb1 {[%emt 0:00:20]} Nd7 {[%emt 0:29:41]} 15. Bg5 {[%emt 0:07:59]} f6 {[%emt 0:02:41]} 16. Bf4 {[%emt 0:08:45]} Ne5 {[%emt 0:05:47]} 17. Nxe5 {[%emt 0:00:50]} dxe5 {[%emt 0:04:47]} 18. Be3 {[%emt 0:00:13]} b6 {[%emt 0:01:26]} 19. a5 {[%emt 0:02:32]} Ba6 {[%emt 0:01:09]} 20. b3 {[%emt 0:01:09]} f5 {[%emt 0:01:05]} 21. Bg5 {[%emt 0:01:47]} Qd6 {[%emt 0:02:54]} 22. f3 {[%emt 0:05:56]} e4 {[%emt 0:11:22]} 23. fxe4 {[%emt 0:02:20]} Qe5 {[%emt 0:03:30]} 24. Rc1 {[%emt 0:04:55]} fxe4 {[%emt 0:01:57]} 25. Bxe4 {[%emt 0:01:26]} Qd4+ {[%emt 0:00:23]} 26. Be3 {[%emt 0:01:40]} Qxd2 {[%emt 0:00:15]} 27. Bxd2 {[%emt 0:00:04]} Bd4+ {[%emt 0:01:29]} 28. Kh2 {[%emt 0:02:11]} Bxc3 {[%emt 0:00:07]} 29. Bxc3 {[%emt 0:00:09]} Rxe4 {[%emt 0:00:02]} 30. Bxb4 {[%emt 0:00:26]} cxb4 {[%emt 0:00:01]} 31. axb6 {[%emt 0:00:12]} axb6 {[%emt 0:00:53]} 32. Ra4 {[%emt 0:00:53]} Bb7 {[%emt 0:01:46]} 33. Rxb4 {[%emt 0:09:36]} Ra6 {[%emt 0:00:02]} 34. Rd1 {[%emt 0:03:06]} Bc8 {[%emt 0:01:02]} 35. Kg3 {[%emt 0:02:03]} Bd7 {[%emt 0:00:29]} 36. Kf3 {[%emt 0:00:19]} Re7 {[%emt 0:01:27]} 37. Rd4 {[%emt 0:01:18]} Kg7 {[%emt 0:00:37]} 38. Re4 {[%emt 0:02:26]} Kf6 {[%emt 0:01:13]} 39. Kf4 {[%emt 0:02:20]} g5+ {[%emt 0:01:44]} 40. Ke3 {[%emt 0:00:00]} Bf5 {[%emt 0:00:00]} 41. Rxe7 {[%emt 0:00:18]} Kxe7 {[%emt 0:00:33]} 42. Kd4 {[%emt 0:00:55]} Bd7 {[%emt 0:04:07]} 43. Ke5 {[%emt 0:04:24]} h5 {[%emt 0:02:47]} 44. h4 {[%emt 0:06:10]} gxh4 {[%emt 0:01:05]} 45. d6+ {[%emt 0:00:40]} Kf7 {[%emt 0:15:54]} 46. c5 {[%emt 0:00:25]} Ra5 {[%emt 0:00:09]} 47. Rf4+ {[%emt 0:00:20]} Ke8 {[%emt 0:01:29]} 48. b4 {[%emt 0:00:55]} Ra2 {[%emt 0:04:05]} 49. Rxh4 {[%emt 0:03:48]} Bg4 {[%emt 0:00:36]} 50. Kd5 {[%emt 0:02:01]} bxc5 {[%emt 0:02:15]} 51. bxc5 {[%emt 0:00:08]} Rxg2 {[%emt 0:02:08]} 52. c6 {[%emt 0:00:23]} Rc2 {[%emt 0:02:09]} 53. c7 {[%emt 0:01:07]} Kd7 {[%emt 0:00:11]} 54. Ke5 {[%emt 0:00:23]} Rc5+ {[%emt 0:00:26]} 55. Kf6 {[%emt 0:01:22]} Kxd6 {[%emt 0:00:16]} 56. Rh2 {[%emt 0:00:04]} Kxc7 {[%emt 0:00:23]} 0-1

[Event "Najdorf Memorial-A 2022"]
[Site "Warsaw"]
[Date "2022.07.12"]
[Round "4.12"]
[White "Szwaj, Justyna"]
[Black "Kulpa, Zuzanna"]
[Result "1-0"]
[ECO "B90"]
[WhiteElo "1797"]
[BlackElo "1985"]
[Annotator "ChessBase"]
[PlyCount "73"]
[EventDate "2022.07.09"]
[EventType "swiss"]
[EventCountry "POL"]
[SourceTitle "playchess.com"]
[Source "ChessBase"]
[SourceQuality "1"]
[TimeControl "40/5400+30:1800+30"]

1. e4 {[%emt 0:04:57]} c5 {[%emt 0:00:06]} 2. Nf3 {[%emt 0:00:18]} d6 {[%emt 0:00:06]} 3. d4 {[%emt 0:00:05]} cxd4 {[%emt 0:00:05]} 4. Nxd4 {[%emt 0:00:03]} Nf6 {[%emt 0:00:05]} 5. Nc3 {[%emt 0:00:04]} a6 {[%emt 0:00:05]} 6. h3 {[%emt 0:00:04]} e5 {[%emt 0:00:08]} 7. Nde2 {[%emt 0:00:05]} h5 {[%emt 0:00:07]} 8. g3 {[%emt 0:00:05]} Be6 {[%emt 0:00:08]} 9. Bg2 {[%emt 0:00:24]} b5 {[%emt 0:00:26]} 10. Be3 {[%emt 0:05:02]} Nbd7 {[%emt 0:01:04]} 11. O-O {[%emt 0:01:18]} Be7 {[%emt 0:00:30]} 12. a4 {[%emt 0:15:06]} b4 {[%emt 0:02:17]} 13. Nd5 {[%emt 0:00:06]} Nxd5 {[%emt 0:00:52]} 14. exd5 {[%emt 0:00:05]} Bf5 {[%emt 0:00:03]} 15. a5 {[%emt 0:05:54]} Rb8 {[%emt 0:07:36]} 16. Qd2 {[%emt 0:04:55]} Nc5 {[%emt 0:06:07]} 17. f4 {[%emt 0:15:37]} Bh7 {[%emt 0:04:30]} 18. Bxc5 {[%emt 0:05:10]} dxc5 {[%emt 0:00:09]} 19. fxe5 {[%emt 0:00:08]} Bg5 {[%emt 0:04:32]} 20. Nf4 {[%emt 0:03:33]} O-O {[%emt 0:01:47]} 21. Qe2 {[%emt 0:03:29]} Rb5 {[%emt 0:09:49]} 22. Nxh5 {[%emt 0:07:02]} Rxa5 23. Rxa5 {[%emt 0:00:15]} Qxa5 {[%emt 0:02:54]} 24. Qg4 {[%emt 0:04:47]} Bh6 {[%emt 0:04:44]} 25. Nf6+ {[%emt 0:09:30]} Kh8 {[%emt 0:00:02]} 26. Nd7 {[%emt 0:01:48]} Re8 {[%emt 0:04:50]} 27. Rxf7 {[%emt 0:04:27]} Qd8 {[%emt 0:04:01]} 28. h4 {[%emt 0:03:39]} Bg8 {[%emt 0:03:35]} 29. Rxg7 {[%emt 0:04:55]} Bxg7 {[%emt 0:00:52]} 30. Qh5+ {[%emt 0:00:03]} Bh7 {[%emt 0:00:06]} 31. Be4 {[%emt 0:00:12]} Bh6 {[%emt 0:00:49]} 32. Nf6 {[%emt 0:00:49]} Qxf6 {[%emt 0:02:28]} 33. exf6 {[%emt 0:01:16]} Be3+ {[%emt 0:00:05]} 34. Kg2 {[%emt 0:01:13]} Rxe4 {[%emt 0:00:02]} 35. f7 {[%emt 0:00:36]} Kg7 {[%emt 0:01:25]} 36. Qxh7+ {[%emt 0:00:08]} Kxh7 {[%emt 0:00:13]} 37. f8=Q {[%emt 0:00:05]} 1-0

[Event "Najdorf Memorial-A 2022"]
[Site "Warsaw"]
[Date "2022.07.12"]
[Round "4.13"]
[White "Harazinska, Magdalena"]
[Black "Kaminski, Jan"]
[Result "1/2-1/2"]
[ECO "D15"]
[WhiteElo "1976"]
[BlackElo "1870"]
[Annotator "ChessBase"]
[PlyCount "68"]
[EventDate "2022.07.09"]
[EventType "swiss"]
[EventCountry "POL"]
[SourceTitle "playchess.com"]
[Source "ChessBase"]
[SourceQuality "1"]
[TimeControl "40/5400+30:1800+30"]

1. Nf3 d5 2. d4 Nf6 3. c4 c6 4. Nc3 a6 5. Bg5 Ne4 6. cxd5 Nxg5 7. Nxg5 cxd5 8. Nf3 e6 9. e3 Nc6 10. Be2 Bd6 11. O-O O-O 12. Rc1 f5 13. g3 g5 14. Ne1 Qf6 15. Bf3 Kh8 16. Bg2 Ne7 17. f4 Bd7 18. Nf3 gxf4 19. exf4 Rac8 20. Qb3 b5 21. Ne2 Nc6 22. Qe3 Qe7 23. Ne5 Nxe5 24. fxe5 Bc7 25. Nf4 Bb6 26. Nd3 Rc4 27. Rxc4 bxc4 28. Nf4 Qb4 29. Ng6+ hxg6 30. Qh6+ Kg8 31. Qxg6+ Kh8 32. Qh6+ Kg8 33. Qg6+ Kh8 34. Rf4 Qe1+ 1/2-1/2

[Event "Najdorf Memorial-A 2022"]
[Site "Warsaw"]
[Date "2022.07.12"]
[Round "4.13"]
[White "Bartodziej, Bartosz"]
[Black "Musial, Tomasz"]
[Result "0-1"]
[ECO "B18"]
[WhiteElo "1809"]
[BlackElo "2131"]
[Annotator "ChessBase"]
[PlyCount "112"]
[EventDate "2022.07.09"]
[EventType "swiss"]
[EventCountry "POL"]
[SourceTitle "playchess.com"]
[Source "ChessBase"]
[SourceQuality "1"]
[TimeControl "40/5400+30:1800+30"]

1. e4 {[%emt 0:00:03]} c6 2. d4 {[%emt 0:00:27]} d5 {[%emt 0:00:20]} 3. Nc3 {[%emt 0:00:11]} dxe4 4. Nxe4 {[%emt 0:00:04]} Bf5 {[%emt 0:00:17]} 5. Ng3 {[%emt 0:00:11]} Bg6 {[%emt 0:00:07]} 6. h4 {[%emt 0:00:07]} h6 {[%emt 0:00:05]} 7. Nf3 {[%emt 0:00:06]} e6 {[%emt 0:00:26]} 8. h5 {[%emt 0:01:47]} Bh7 {[%emt 0:00:07]} 9. Bd3 {[%emt 0:00:09]} Bxd3 {[%emt 0:00:39]} 10. Qxd3 {[%emt 0:00:04]} Nf6 {[%emt 0:00:37]} 11. Bd2 {[%emt 0:01:01]} Be7 {[%emt 0:00:31]} 12. O-O-O {[%emt 0:01:37]} O-O {[%emt 0:00:29]} 13. Ne4 {[%emt 0:04:51]} Nxe4 {[%emt 0:00:06]} 14. Qxe4 {[%emt 0:00:03]} Qd5 {[%emt 0:00:07]} 15. Qxd5 {[%emt 0:02:40]} cxd5 {[%emt 0:00:19]} 16. Kb1 {[%emt 0:06:02]} Nc6 {[%emt 0:08:12]} 17. g4 Bd6 {[%emt 0:19:47]} 18. g5 {[%emt 0:31:22]} hxg5 {[%emt 0:01:05]} 19. Bxg5 {[%emt 0:02:01]} f6 {[%emt 0:00:19]} 20. Bc1 {[%emt 0:04:10]} Kf7 {[%emt 0:04:42]} 21. Nh4 {[%emt 0:15:46]} b5 {[%emt 0:14:54]} 22. Ng6 {[%emt 0:01:54]} Rfc8 {[%emt 0:00:37]} 23. f4 {[%emt 0:04:08]} Ne7 {[%emt 0:08:10]} 24. Nxe7 {[%emt 0:01:05]} Bxe7 {[%emt 0:00:06]} 25. f5 {[%emt 0:01:44]} exf5 {[%emt 0:01:13]} 26. Rdf1 {[%emt 0:01:25]} Rc4 {[%emt 0:04:45]} 27. c3 {[%emt 0:03:02]} b4 {[%emt 0:01:52]} 28. Bd2 {[%emt 0:02:46]} bxc3 {[%emt 0:02:22]} 29. bxc3 {[%emt 0:02:03]} Rb8+ {[%emt 0:02:20]} 30. Kc2 {[%emt 0:07:58]} Ra4 {[%emt 0:00:19]} 31. Rxf5 {[%emt 0:00:30]} Rxa2+ {[%emt 0:00:30]} 32. Kd3 {[%emt 0:00:30]} a5 {[%emt 0:08:36]} 33. Rxd5 {[%emt 0:00:30]} Ke6 {[%emt 0:00:07]} 34. c4 {[%emt 0:02:19]} Rb3+ {[%emt 0:01:36]} 35. Bc3 {[%emt 0:00:08]} Bb4 36. Re1+ {[%emt 0:00:04]} Kf7 {[%emt 0:04:03]} 37. Rd7+ Kg8 38. Rg1 {[%emt 0:03:14]} Rxc3+ {[%emt 0:00:20]} 39. Ke4 Re2+ 40. Kf5 {[%emt 0:00:00]} Re7 {[%emt 0:00:00]} 41. Rxe7 {[%emt 0:06:49]} Bxe7 42. h6 {[%emt 0:03:05]} Bf8 {[%emt 0:09:10]} 43. hxg7 {[%emt 0:03:39]} Bxg7 44. c5 {[%emt 0:01:42]} a4 {[%emt 0:18:15]} 45. Ke6 {[%emt 0:05:23]} a3 {[%emt 0:02:05]} 46. Rg2 {[%emt 0:16:16]} Kf8 {[%emt 0:10:27]} 47. Kf5 {[%emt 0:00:30]} Rc4 {[%emt 0:01:32]} 48. Ra2 {[%emt 0:00:29]} Ra4 {[%emt 0:04:05]} 49. c6 {[%emt 0:00:27]} Ke7 {[%emt 0:02:45]} 50. Kg6 {[%emt 0:00:34]} Kd6 {[%emt 0:02:57]} 51. Kxg7 {[%emt 0:00:26]} Kxc6 {[%emt 0:00:06]} 52. Kxf6 {[%emt 0:00:04]} Kd5 {[%emt 0:00:08]} 53. Ke7 Kxd4 {[%emt 0:00:16]} 54. Rh2 {[%emt 0:01:09]} Ra7+ {[%emt 0:00:26]} 55. Kd6 {[%emt 0:00:25]} Ra6+ {[%emt 0:00:16]} 56. Kd7 {[%emt 0:00:07]} a2 {[%emt 0:00:05]} 0-1